lending/lending_fUSD_20250808
["ID","MTS","AMOUNT","RATE_DAILY","PERIOD"]
[378029314,1754674321422,-484.85,0.00019762,2]
[378029315,1754674321432,-400.0,0.00019762,2]
[378029316,1754674321440,-216.82183151,0.00019762,2]
[378029317,1754674321449,-432.17,0.00019762,2]
[378029318,1754674321463,-400.0,0.00019762,2]
[378029319,1754674321473,-400.0,0.00019762,2]
[378029320,1754674321482,-507.44450315,0.00019762,2]
[378029321,1754674321492,-1178.17,0.00019762,2]
[378029322,1754674321501,-514.93811222,0.00019762,2]
[378029323,1754674321511,-456.42,0.00019762,2]
[378029324,1754674321520,-400.0,0.00019762,2]
[378029325,1754674321529,-400.0,0.00019762,2]
[378029326,1754674321538,-534.77,0.00019762,2]
[378029327,1754674321547,-400.0,0.00019762,2]
[378029328,1754674321557,-400.0,0.00019762,2]
[378029329,1754674321566,-4517.84,0.00019762,2]
[378029330,1754674321575,-435.31,0.00019762,2]
[378029331,1754674321584,-400.0,0.00019762,2]
[378029332,1754674321593,-477.72,0.00019762,2]
[378029333,1754674321603,-400.0,0.00019762,2]
[378029334,1754674321613,-400.0,0.00019762,2]
[378029335,1754674321622,-400.0,0.00019762,2]
[378029336,1754674321631,-400.0,0.00019762,2]
[378029337,1754674321641,-4062.08,0.00019762,2]
[378029338,1754674321650,-400.0,0.00019762,2]
[378029339,1754674321660,-400.0,0.00019762,2]
[378029340,1754674321669,-400.0,0.00019762,2]
[378029341,1754674321679,-400.0,0.00019762,2]
[378029342,1754674321689,-735.5,0.00019762,2]
[378029343,1754674321698,-400.0,0.00019762,2]
[378029344,1754674321712,-1368.24,0.00019762,2]
[378029345,1754674321722,-400.0,0.00019762,2]
[378029346,1754674321732,-400.0,0.00019762,2]
[378029347,1754674321742,-400.0,0.00019762,2]
[378029348,1754674321752,-400.0,0.00019762,2]
[378029349,1754674321762,-400.0,0.00019762,2]
[378029350,1754674321771,-400.0,0.00019762,2]
[378029351,1754674321781,-1187.72,0.00019762,2]
[378029352,1754674321791,-400.0,0.00019762,2]
[378029353,1754674321801,-400.0,0.00019762,2]
[378029354,1754674321811,-450.77,0.00019762,2]
[378029355,1754674321820,-417.78719882,0.00019762,2]
[378029356,1754674321829,-400.0,0.00019762,2]
[378029357,1754674321839,-400.0,0.00019762,2]
[378029358,1754674321848,-400.0,0.00019762,2]
[378029359,1754674321858,-521.49604836,0.00019762,2]
[378029360,1754674321867,-400.0,0.00019762,2]
[378029361,1754674321877,-1471.83,0.00019762,2]
[378029362,1754674321886,-521.8919861,0.00019762,2]
[378029363,1754674321895,-557.2,0.00019762,2]
[378029364,1754674321904,-400.0,0.00019762,2]
[378029365,1754674321913,-400.0,0.00019762,2]
[378029366,1754674321923,-436.5,0.00019762,2]
[378029367,1754674321932,-439.47,0.00019762,2]
[378029368,1754674321942,-1359.72,0.00019762,2]
[378029369,1754674321951,-400.0,0.00019762,2]
[378029370,1754674321964,-178.59696812,0.00019762,2]
[378029371,1754674321973,-400.0,0.00019762,2]
[378029372,1754674321982,-1098.38,0.00019762,2]
[378029373,1754674321991,-400.0,0.00019762,2]
[378029374,1754674322000,-400.0,0.00019762,2]
[378029375,1754674322008,-400.0,0.00019762,2]
[378029376,1754674322018,-505.49,0.00019762,2]
[378029377,1754674322027,-493.47,0.00019762,2]
[378029378,1754674322036,-400.0,0.00019762,2]
[378029379,1754674322046,-400.0,0.00019762,2]
[378029380,1754674322056,-412.55,0.00019762,2]
[378029381,1754674322064,-808.39,0.00019762,2]
[378029382,1754674322074,-496.49,0.00019762,2]
[378029383,1754674322085,-528.81,0.00019762,2]
[378029384,1754674322095,-400.0,0.00019762,2]
[378029385,1754674322105,-400.0,0.00019762,2]
[378029386,1754674322114,-1155.05,0.00019762,2]
[378029387,1754674322124,-400.0,0.00019762,2]
[378029388,1754674322133,-400.0,0.00019762,2]
[378029389,1754674322142,-485.06,0.00019762,2]
[378029390,1754674322151,-521.07,0.00019762,2]
[378029391,1754674322162,-400.0,0.00019762,2]
[378029392,1754674322172,-643.05,0.00019762,2]
[378029393,1754674322181,-400.0,0.00019762,2]
[378029394,1754674322191,-760.76,0.00019762,2]
[378029395,1754674322200,-489.19,0.00019762,2]
[378029396,1754674322213,-576.62,0.00019762,2]
[378029397,1754674322222,-437.71,0.00019762,2]
[378029398,1754674322232,-704.59,0.00019762,2]
[378029399,1754674322241,-400.0,0.00019762,2]
[378029400,1754674322250,-1259.56,0.00019762,2]
[378029401,1754674322259,-919.49,0.00019762,2]
[378029402,1754674322268,-508.27,0.00019762,2]
[378029403,1754674322277,-400.0,0.00019762,2]
[378029404,1754674322287,-400.0,0.00019762,2]
[378029405,1754674322296,-1124.56,0.00019762,2]
[378029406,1754674322306,-2507.35,0.00019762,2]
[378029407,1754674322317,-424.0,0.00019762,2]
[378029408,1754674322326,-400.0,0.00019762,2]
[378029409,1754674322335,-1219.23,0.00019762,2]
[378029410,1754674322344,-400.0,0.00019762,2]
[378029411,1754674322353,-400.0,0.00019762,2]
[378029412,1754674322362,-738.95,0.00019762,2]
[378029413,1754674322371,-3428.22,0.00019762,2]
[378029414,1754674322380,-739.75,0.00019762,2]
[378029415,1754674322389,-705.62,0.00019762,2]
[378029416,1754674322398,-503.50252045,0.00019762,2]
[378029417,1754674322407,-429.41,0.00019762,2]
[378029418,1754674322415,-408.09,0.00019762,2]
[378029419,1754674322425,-22590.06,0.00019762,2]
[378029420,1754674322435,-400.0,0.00019762,2]
[378029421,1754674322443,-400.0,0.00019762,2]
[378029422,1754674322453,-444.79,0.00019762,2]
[378029423,1754674322467,-400.0,0.00019762,2]
[378029424,1754674322477,-1009.83,0.00019762,2]
[378029425,1754674322487,-400.0,0.00019762,2]
[378029426,1754674322496,-400.0,0.00019762,2]
[378029427,1754674322505,-612.57,0.00019762,2]
[378029428,1754674322514,-400.0,0.00019762,2]
[378029429,1754674322524,-1019.52,0.00019762,2]
[378029430,1754674322533,-412.85,0.00019762,2]
[378029431,1754674322542,-400.0,0.00019762,2]
[378029432,1754674322555,-400.0,0.00019762,2]
[378029433,1754674322565,-602.24,0.00019762,2]
[378029434,1754674322573,-400.0,0.00019762,2]
[378029435,1754674322582,-400.0,0.00019762,2]
[378029436,1754674322592,-702.83,0.00019762,2]
[378029437,1754674322601,-400.0,0.00019762,2]
[378029438,1754674322611,-400.0,0.00019762,2]
[378029439,1754674322619,-401.02,0.00019762,2]
[378029440,1754674322629,-400.0,0.00019762,2]
[378029441,1754674322637,-480.03,0.00019762,2]
[378029442,1754674322647,-414.37,0.00019762,2]
[378029443,1754674322656,-400.0,0.00019762,2]
[378029444,1754674322665,-420.84,0.00019762,2]
[378029445,1754674322674,-469.13,0.00019762,2]
[378029446,1754674322686,-1156.43,0.00019762,2]
[378029447,1754674322695,-1173.27,0.00019762,2]
[378029448,1754674322704,-414.41,0.00019762,2]
[378029449,1754674322716,-2082.95,0.00019762,2]
[378029450,1754674322724,-400.0,0.00019762,2]
[378029451,1754674322733,-1355.51,0.00019762,2]
[378029452,1754674322743,-400.0,0.00019762,2]
[378029453,1754674322752,-400.0,0.00019762,2]
[378029454,1754674322761,-400.0,0.00019762,2]
[378029455,1754674322771,-712.97,0.00019762,2]
[378029456,1754674322780,-1433.19,0.00019762,2]
[378029457,1754674322789,-400.0,0.00019762,2]
[378029458,1754674322799,-400.0,0.00019762,2]
[378029459,1754674322808,-1279.98,0.00019762,2]
[378029460,1754674322817,-400.0,0.00019762,2]
[378029461,1754674322827,-2544.43,0.00019762,2]
[378029462,1754674322836,-3304.91,0.00019762,2]
[378029463,1754674322846,-545.33,0.00019762,2]
[378029464,1754674322855,-1361.67,0.00019762,2]
[378029465,1754674322864,-400.0,0.00019762,2]
[378029466,1754674322874,-680.15,0.00019762,2]
[378029467,1754674322883,-446.42,0.00019762,2]
[378029468,1754674322893,-1015.86,0.00019762,2]
[378029469,1754674322902,-400.0,0.00019762,2]
[378029470,1754674322911,-391.10502788,0.00019762,2]
[378029471,1754674322921,-6584.79,0.00019762,2]
[378029472,1754674322930,-400.0,0.00019762,2]
[378029473,1754674322939,-400.0,0.00019762,2]
[378029474,1754674322949,-2692.03,0.00019762,2]
[378029475,1754674322963,-472.84,0.00019762,2]
[378029476,1754674322972,-400.0,0.00019762,2]
[378029477,1754674322982,-645.58,0.00019762,2]
[378029478,1754674322991,-407.66521352,0.00019762,2]
[378029479,1754674323000,-400.0,0.00019762,2]
[378029480,1754674323010,-400.0,0.00019762,2]
[378029481,1754674323019,-434.44,0.00019762,2]
[378029482,1754674323029,-510.44,0.00019762,2]
[378029483,1754674323039,-400.0,0.00019762,2]
[378029484,1754674323048,-400.0,0.00019762,2]
[378029485,1754674323058,-400.0,0.00019762,2]
[378029486,1754674323068,-400.0,0.00019762,2]
[378029487,1754674323079,-637.96,0.00019762,2]
[378029488,1754674323092,-400.0,0.00019762,2]
[378029489,1754674323102,-4087.5,0.00019762,2]
[378029490,1754674323111,-400.0,0.00019762,2]
[378029491,1754674323123,-400.0,0.00019762,2]
[378029492,1754674323133,-1000.0,0.00019762,2]
[378029493,1754674323143,-1167.59,0.00019762,2]
[378029494,1754674323153,-839.14,0.00019762,2]
[378029495,1754674323165,-423.67,0.00019762,2]
[378029496,1754674323174,-1923.32,0.00019762,2]
[378029497,1754674323184,-400.0,0.00019762,2]
[378029498,1754674323194,-400.0,0.00019762,2]
[378029499,1754674323204,-2534.72,0.00019762,2]
[378029500,1754674323217,-3221.54,0.00019762,2]
[378029501,1754674323227,-400.0,0.00019762,2]
[378029502,1754674323236,-2686.59,0.00019762,2]
[378029503,1754674323246,-2767.77,0.00019762,2]
[378029504,1754674323256,-4079.49,0.00019762,2]
[378029505,1754674323266,-1045.66,0.00019762,2]
[378029506,1754674323275,-3290.29,0.00019763,2]
[378029507,1754674323285,-2369.18,0.00019763,2]
[378029508,1754674323295,-13166.57,0.00019763,2]
[378029509,1754674323305,-1590.7,0.00019763,2]
[378029510,1754674323315,-1258.97,0.00019763,2]
[378029511,1754674323325,-2052.34,0.00019763,2]
[378029512,1754674323334,-508.01,0.00019763,2]
[378029513,1754674323343,-5234.06,0.00019763,2]
[378029514,1754674323353,-400.0,0.00019763,2]
[378029515,1754674323362,-2455.21,0.00019763,2]
[378029516,1754674323372,-1846.96,0.00019763,2]
[378029517,1754674323381,-1243.92,0.00019763,2]
[378029518,1754674323391,-1638.01,0.00019763,2]
[378029519,1754674323401,-1639.76,0.00019763,2]
[378029520,1754674323410,-1386.66,0.00019763,2]
[378029521,1754674323421,-2763.15,0.00019763,2]
[378029522,1754674323430,-3536.52,0.00019763,2]
[378029523,1754674323440,-2140.87,0.00019763,2]
[378029524,1754674323450,-1711.31,0.00019763,2]
[378029525,1754674323459,-449.95,0.00019763,2]
[378029526,1754674323472,-151.0,0.00019764,2]
[378029527,1754674323481,-151.0,0.00019764,2]
[378029528,1754674323491,-178.508048,0.00019764,2]
[378029529,1754674323500,-151.0,0.00019764,2]
[378029530,1754674323509,-151.0,0.00019764,2]
[378029531,1754674323519,-151.0,0.00019764,2]
[378029532,1754674323530,-151.0,0.00019764,2]
[378029533,1754674323543,-151.0,0.00019764,2]
[378029534,1754674323553,-151.0,0.00019764,2]
[378029535,1754674323562,-151.0,0.00019764,2]
[378029536,1754674323572,-175.595456,0.00019764,2]
[378029537,1754674323582,-175.595456,0.00019764,2]
[378029538,1754674323591,-151.0,0.00019765,2]
[378029539,1754674323601,-151.0,0.00019765,2]
[378029540,1754674323611,-267.836724,0.00019765,2]
[378029541,1754674323620,-267.836724,0.00019765,2]
[378029542,1754674323629,-1500.0,0.00019768,2]
[378029543,1754674323639,-1000.0,0.00019781,2]
[378029544,1754674323648,-1104.9133,0.00019781,2]
[378029545,1754674323658,-1000.0,0.00019781,2]
[378029546,1754674323667,-1000.0,0.00019781,2]
[378029547,1754674323677,-1000.0,0.00019781,2]
[378029548,1754674323687,-1000.0,0.00019781,2]
[378029549,1754674323696,-1000.0,0.00019781,2]
[378029550,1754674323706,-1000.0,0.00019781,2]
[378029551,1754674323719,-1000.0,0.00019781,2]
[378029552,1754674323728,-1000.0,0.00019781,2]
[378029553,1754674323738,-1000.0,0.00019781,2]
[378029554,1754674323749,-1000.0,0.00019781,2]
[378029555,1754674323758,-1000.0,0.00019781,2]
[378029556,1754674323768,-1000.0,0.00019781,2]
[378029557,1754674323778,-1000.0,0.00019781,2]
[378029558,1754674323788,-1000.0,0.00019781,2]
[378029559,1754674323799,-1000.0,0.00019781,2]
[378029560,1754674323809,-1000.0,0.00019781,2]
[378029561,1754674323819,-1000.0,0.00019781,2]
[378029562,1754674323829,-1000.0,0.00019781,2]
[378029563,1754674323838,-1000.0,0.00019781,2]
[378029564,1754674323848,-1000.0,0.00019781,2]
[378029565,1754674323857,-1000.0,0.00019781,2]
[378029566,1754674323867,-1000.0,0.00019781,2]
[378029567,1754674323877,-1000.0,0.00019781,2]
[378029568,1754674323886,-1000.0,0.00019781,2]
[378029569,1754674323896,-1000.0,0.00019781,2]
[378029570,1754674323906,-1000.0,0.00019781,2]
[378029571,1754674323915,-1000.0,0.00019781,2]
[378029572,1754674323924,-1000.0,0.00019781,2]
[378029573,1754674323934,-1000.0,0.00019781,2]
[378029574,1754674323943,-1000.0,0.00019781,2]
[378029575,1754674323953,-1051.101,0.00019781,2]
[378029576,1754674323963,-213.0,0.0001979,2]
[378029577,1754674323973,-211.0,0.0001979,2]
[378029578,1754674323982,-1738.14986775,0.00019823,2]
[378029579,1754674323992,-209.4,0.00019826,2]
[378029580,1754674324002,-1528.4800637,0.00019877,2]
[378029581,1754674324013,-485.7303613,0.00019877,2]
[378029582,1754674324023,-1151.52025033,0.00019879,5]
[378029583,1754674324032,-121297.76687079,0.0001988,2]
[378029584,1754674324042,-2000.0,0.0001988,2]
[378029585,1754674324051,-2000.0,0.0001988,2]
[378029586,1754674324061,-2000.0,0.0001988,2]
[378029587,1754674324071,-2000.0,0.0001988,2]
[378029588,1754674324082,-2000.0,0.0001988,2]
[378029589,1754674324094,-1996.93,0.0001988,2]
[378029590,1754674324104,-153.164224,0.0001988,2]
[378029591,1754674324114,-2500.0,0.0001989,2]
[378029592,1754674324125,-500.0,0.0001989,2]
[378029593,1754674324135,-250.0,0.0001989,2]
[378029594,1754674324145,-500.0,0.0001989,2]
[378029595,1754674324155,-1000.0,0.0001989,4]
[378029596,1754674324167,-2500.0,0.0001989,2]
[378029597,1754674324177,-500.0,0.0001989,2]
[378029598,1754674324187,-300.0,0.000199,7]
[378029599,1754674324197,-172.14711092,0.000199,2]
[378029600,1754674324206,-1602.0443741,0.00019901,2]
[378029601,1754674324223,-510.0387395,0.00019901,2]
[378029602,1754674324233,-1817.9337961,0.00019906,2]
[378029603,1754674324243,-1680.0,0.00019907,2]
[378029604,1754674324253,-209.4,0.00019913,2]
[378029605,1754674324263,-534.3471176,0.00019913,2]
[378029606,1754674324272,-1675.6086846,0.00019915,2]
[378029607,1754674324282,-1749.1729951,0.00019916,2]
[378029608,1754674324292,-168.0,0.00019924,2]
[378029609,1754674324301,-1822.7373056,0.00019927,2]
[378029610,1754674324311,-420.0,0.00019928,2]
[378029611,1754674324320,-151.0,0.00019929,2]
[378029612,1754674324330,-558.6554957,0.00019929,2]
[378029613,1754674324340,-151.0,0.0001993,2]
[378029614,1754674324350,-151.0,0.0001993,2]
[378029615,1754674324359,-151.0,0.0001993,2]
[378029616,1754674324369,-229.247804,0.0001993,2]
[378029617,1754674324378,-151.0,0.0001993,2]
[378029618,1754674324388,-175.595456,0.0001993,2]
[378029619,1754674324398,-175.595456,0.0001993,2]
[378029620,1754674324407,-582.9638738,0.00019931,2]
[378029621,1754674324417,-222.0,0.0001994,2]
[378029622,1754674324427,-151.0,0.00019943,2]
[378029623,1754674324436,-267.836724,0.00019943,2]
[378029624,1754674324446,-267.836724,0.00019943,2]
[378029625,1754674324456,-151.0,0.00019944,2]
[378029626,1754674324471,-151.0,0.00019944,2]
[378029627,1754674324480,-151.0,0.00019944,2]
[378029628,1754674324490,-155.40279,0.00019944,2]
[378029629,1754674324500,-151.0,0.00019944,2]
[378029630,1754674324509,-175.595456,0.00019944,2]
[378029631,1754674324518,-175.595456,0.00019944,2]
[378029632,1754674324641,-642626.51113843,0.0001995,15]
[378029633,1754674324653,-207.79,0.00019963,2]
[378029634,1754674324663,-1896.3016161,0.00019973,2]
[378029635,1754674324672,-607.272252,0.00019973,2]
[378029636,1754674324682,-2000.0,0.00019987,3]
[378029637,1754674324692,-1897.71772446,0.0001999,2]
[378029638,1754674324702,-207.78,0.00019998,2]
[378029639,1754674324711,-150.0,0.00019999,2]
[378029640,1754674324726,-1000.0,0.00019999,2]
[378029641,1754674324736,-900.0,0.0002,2]
[378029642,1754674324747,-658.67475182,0.0002,2]
[378029643,1754674324756,-150.0,0.0002,7]
[378029644,1754674324767,-5907.48,0.0002,2]
[378029645,1754674324777,-390.0,0.0002,2]
[378029646,1754674324787,-4100.35974726,0.0002,2]
[378029647,1754674324798,-3012.62439621,0.0002,7]
[378029648,1754674324808,-164467.0,0.0002,14]
[378029649,1754674324818,-160.0,0.0002,2]
[378029650,1754674324828,-2000.0,0.0002,2]
[378029651,1754674324838,-2101.91569476,0.0002,2]
[378029652,1754674324847,-2500.0,0.0002,3]
[378029653,1754674324857,-2000.0,0.0002,2]
[378029654,1754674324867,-161.29,0.0002,4]
[378029655,1754674324876,-160.0,0.0002,7]
[378029656,1754674324886,-150.0,0.0002,2]
[378029657,1754674324895,-2000.0,0.0002,2]
[378029658,1754674324905,-2000.0,0.0002,2]
[378029659,1754674324914,-25064.82789592,0.0002,2]
[378029660,1754674324925,-151134.83970578,0.0002,5]
[378029661,1754674324934,-3676.13007071,0.0002,20]
[378029662,1754674324943,-7137.52402056,0.0002,5]
[378029663,1754674324953,-233.0,0.0002,2]
[378029664,1754674324963,-1003.3467438,0.0002,7]
[378029665,1754674324975,-2000.0,0.0002,2]
[378029666,1754674324984,-151.0,0.0002,2]
[378029667,1754674324993,-267.836724,0.0002,2]
[378029668,1754674325002,-267.836724,0.0002,2]
[378029669,1754674325011,-213.0,0.0002,2]
[378029670,1754674325021,-211.0,0.0002,2]
[378029671,1754674325030,-151.0,0.0002,2]
[378029672,1754674325040,-2000.0,0.0002,2]
[378029673,1754674325050,-209.4,0.0002,2]
[378029674,1754674325059,-390.5269,0.0002,2]
[378029675,1754674325069,-390.5269,0.0002,2]
[378029676,1754674325079,-165.7,0.0002,2]
[378029677,1754674325092,-13049.37800908,0.0002,14]
[378029678,1754674325102,-200.0,0.0002,2]
[378029679,1754674325112,-1082.196,0.0002,2]
[378029680,1754674325122,-1082.196,0.0002,2]
[378029681,1754674325132,-4000.0,0.0002,4]
[378029682,1754674325142,-1902.4776,0.0002,2]
[378029683,1754674325151,-1902.4776,0.0002,2]
[378029684,1754674325162,-2000.0,0.0002001,2]
[378029685,1754674325172,-2000.0,0.0002002,2]
[378029686,1754674325181,-151.0,0.0002002,2]
[378029687,1754674325191,-2168.561838,0.0002003,2]
[378029688,1754674325201,-150.0,0.0002003,2]
[378029689,1754674325210,-400.0,0.00020034,2]
[378029690,1754674325224,-400.0,0.00020034,2]
[378029691,1754674325234,-661.11,0.00020034,2]
[378029692,1754674325244,-2954.91,0.00020034,2]
[378029693,1754674325254,-2275.54,0.00020034,2]
[378029694,1754674325264,-946.48,0.00020034,2]
[378029695,1754674325273,-848.32,0.00020034,2]
[378029696,1754674325283,-7691.76,0.00020034,2]
[378029697,1754674325293,-1032.75,0.00020034,2]
[378029698,1754674325303,-600.19,0.00020034,2]
[378029699,1754674325312,-1855.93,0.00020034,2]
[378029700,1754674325322,-675.93,0.00020034,2]
[378029701,1754674325331,-5291.16,0.00020034,2]
[378029702,1754674325341,-2731.24,0.00020034,2]
[378029703,1754674325351,-3569.89,0.00020034,2]
[378029704,1754674325361,-643.22,0.00020034,2]
[378029705,1754674325370,-400.0,0.00020034,2]
[378029706,1754674325380,-1935.23,0.00020034,2]
[378029707,1754674325390,-821.85,0.00020034,2]
[378029708,1754674325400,-774.94,0.00020034,2]
[378029709,1754674325409,-538.44,0.00020034,2]
[378029710,1754674325418,-447.97,0.00020034,2]
[378029711,1754674325428,-500.0,0.00020035,2]
[378029712,1754674325438,-500.0,0.00020035,2]
[378029713,1754674325447,-947.0,0.00020035,2]
[378029714,1754674325456,-500.0,0.00020035,2]
[378029715,1754674325472,-1798.0,0.00020035,2]
[378029716,1754674325482,-977.0,0.00020035,2]
[378029717,1754674325491,-155.776285,0.00020035,2]
[378029718,1754674325501,-156.799685,0.00020035,2]
[378029719,1754674325510,-183.659282,0.00020035,2]
[378029720,1754674325520,-1000.0,0.00020035,2]
[378029721,1754674325529,-2162.28,0.00020035,2]
[378029722,1754674325539,-788.52,0.00020035,2]
[378029723,1754674325548,-606.57,0.00020035,2]
[378029724,1754674325558,-691.64,0.00020035,2]
[378029725,1754674325568,-504.23,0.00020035,2]
[378029726,1754674325578,-711.68,0.00020035,2]
[378029727,1754674325587,-672.8,0.00020035,2]
[378029728,1754674325597,-767.72,0.00020035,2]
[378029729,1754674325606,-400.0,0.00020035,2]
[378029730,1754674325616,-411.37,0.00020035,2]
[378029731,1754674325626,-692.39,0.00020035,2]
[378029732,1754674325636,-460.18,0.00020035,2]
[378029733,1754674325645,-680.33,0.00020035,2]
[378029734,1754674325655,-418.64,0.00020035,2]
[378029735,1754674325664,-400.0,0.00020035,2]
[378029736,1754674325674,-1053.65,0.00020035,2]
[378029737,1754674325683,-400.0,0.00020035,2]
[378029738,1754674325693,-591.98,0.00020035,2]
[378029739,1754674325702,-400.0,0.00020035,2]
[378029740,1754674325712,-400.0,0.00020035,2]
[378029741,1754674325723,-400.0,0.00020035,2]
[378029742,1754674325733,-820.42,0.00020035,2]
[378029743,1754674325743,-444.75,0.00020035,2]
[378029744,1754674325752,-540.05,0.00020035,2]
[378029745,1754674325762,-400.0,0.00020035,2]
[378029746,1754674325772,-475.1,0.00020035,2]
[378029747,1754674325781,-1065.2,0.00020035,2]
[378029748,1754674325791,-663.95,0.00020035,2]
[378029749,1754674325801,-664.58,0.00020035,2]
[378029750,1754674325811,-552.2,0.00020035,2]
[378029751,1754674325820,-795.59,0.00020035,2]
[378029752,1754674325830,-400.0,0.00020035,2]
[378029753,1754674325840,-1009.8,0.00020035,2]
[378029754,1754674325850,-400.0,0.00020035,2]
[378029755,1754674325860,-400.0,0.00020035,2]
[378029756,1754674325869,-382.04000083,0.00020035,2]
[378029757,1754674325880,-400.0,0.00020035,2]
[378029758,1754674325890,-400.0,0.00020035,2]
[378029759,1754674325899,-758.91,0.00020035,2]
[378029760,1754674325908,-400.0,0.00020035,2]
[378029761,1754674325918,-400.0,0.00020035,2]
[378029762,1754674325928,-405.9,0.00020035,2]
[378029763,1754674325939,-794.09,0.00020035,2]
[378029764,1754674325949,-860.42,0.00020035,2]
[378029765,1754674325959,-497.38,0.00020035,2]
[378029766,1754674325974,-400.0,0.00020035,2]
[378029767,1754674325983,-675.98,0.00020035,2]
[378029768,1754674325993,-400.0,0.00020035,2]
[378029769,1754674326003,-400.0,0.00020035,2]
[378029770,1754674326012,-1322.96,0.00020035,2]
[378029771,1754674326021,-515.94,0.00020035,2]
[378029772,1754674326031,-492.09,0.00020035,2]
[378029773,1754674326040,-1269.65,0.00020035,2]
[378029774,1754674326049,-1150.11,0.00020035,2]
[378029775,1754674326059,-729.76,0.00020035,2]
[378029776,1754674326068,-400.0,0.00020035,2]
[378029777,1754674326078,-786.33,0.00020035,2]
[378029778,1754674326092,-400.0,0.00020035,2]
[378029779,1754674326102,-400.0,0.00020035,2]
[378029780,1754674326111,-400.0,0.00020035,2]
[378029781,1754674326120,-400.0,0.00020035,2]
[378029782,1754674326130,-933.94,0.00020035,2]
[378029783,1754674326139,-1309.0,0.00020035,2]
[378029784,1754674326148,-630.93,0.00020035,2]
[378029785,1754674326158,-1106.53,0.00020035,2]
[378029786,1754674326168,-1201.36,0.00020035,2]
[378029787,1754674326178,-400.0,0.00020035,2]
[378029788,1754674326187,-623.4,0.00020035,2]
[378029789,1754674326196,-1959.17,0.00020035,2]
[378029790,1754674326206,-400.0,0.00020035,2]
[378029791,1754674326217,-948.04,0.00020035,2]
[378029792,1754674326227,-1232.12,0.00020035,2]
[378029793,1754674326237,-501.95,0.00020035,2]
[378029794,1754674326246,-400.0,0.00020035,2]
[378029795,1754674326255,-1029.5,0.00020035,2]
[378029796,1754674326265,-400.0,0.00020035,2]
[378029797,1754674326274,-400.0,0.00020035,2]
[378029798,1754674326284,-400.0,0.00020035,2]
[378029799,1754674326293,-1075.7,0.00020035,2]
[378029800,1754674326302,-400.0,0.00020035,2]
[378029801,1754674326311,-1017.42,0.00020035,2]
[378029802,1754674326320,-467.67,0.00020035,2]
[378029803,1754674326330,-743.32,0.00020035,2]
[378029804,1754674326339,-400.0,0.00020035,2]
[378029805,1754674326349,-466.11,0.00020035,2]
[378029806,1754674326359,-496.93,0.00020035,2]
[378029807,1754674326368,-400.0,0.00020035,2]
[378029808,1754674326378,-400.0,0.00020035,2]
[378029809,1754674326388,-1260.4,0.00020035,2]
[378029810,1754674326398,-470.18,0.00020035,2]
[378029811,1754674326407,-400.0,0.00020035,2]
[378029812,1754674326417,-641.02,0.00020035,2]
[378029813,1754674326426,-400.0,0.00020035,2]